[Event "EYCC Girls-U10 2019"]
[Site "Bratislava"]
[Date "2019.08.08"]
[Round "7.3"]
[White "Sidorenja, Milena"]
[Black "Stoll, Lucia"]
[Result "0-1"]
[ECO "C44"]
[WhiteElo "1573"]
[BlackElo "1403"]
[Annotator "NA"]
[PlyCount "71"]
[EventDate "2019.08.02"]
[EventType "swiss"]
[EventCountry "SVK"]
[SourceTitle "playchess.com"]
[Source "ChessBase"]
[SourceQuality "1"]
[TimeControl "40/5400+30:1800+30"]

1. e4 {[%emt 0:00:00]} e5 {[%emt 0:00:00]} 2. Nf3 {[%emt 0:00:00]} Nc6 {[%emt 0:00:00]} 3. d4 {[%emt 0:00:00]} exd4 {[%emt 0:00:17]} 4. c3 {[%emt 0:00:00]} d5 {[%emt 0:00:42]} 5. exd5 {[%emt 0:00:07]} Qxd5 {[%emt 0:00:15]} 6. cxd4 {[%emt 0:00:17]} Bg4 {[%emt 0:00:29]} 7. Nc3 {[%emt 0:08:29]} Bb4 {[%emt 0:00:28]} 8. Be2 {[%emt 0:00:34]} Bxf3 {[%emt 0:00:34]} 9. Bxf3 {[%emt 0:00:10]} Qc4 {[%emt 0:01:27]} 10. Be2 {[%emt 0:50:09]} Bxc3+ {[%emt 0:01:26]} 11. bxc3 {[%emt 0:00:11]} Qxc3+ {[%emt 0:00:19]} 12. Bd2 {[%emt 0:00:10]} Qxd4 {[%emt 0:01:48]} 13. O-O {[%emt 0:00:37]} Nge7 {[%emt 0:00:48]} 14. Qc2 {[%emt 0:04:56]} O-O {[%emt 0:02:27]} 15. Bc3 {[%emt 0:02:28]} Qc5 {[%emt 0:01:49]} 16. Qb2 {[%emt 0:02:07]} f6 {[%emt 0:02:16]} 17. Rac1 {[%emt 0:01:55]} Qb6 {[%emt 0:01:18]} 18. Qc2 {[%emt 0:02:00]} Rab8 {[%emt 0:08:03]} 19. Rb1 {[%emt 0:03:15]} Qc5 {[%emt 0:00:43]} 20. Rb5 {[%emt 0:00:15]} Qd6 {[%emt 0:01:21]} 21. Rh5 {[%emt 0:02:26]} f5 {[%emt 0:03:36]} 22. Bc4+ {[%emt 0:02:49]} Kh8 {[%emt 0:01:26]} 23. Rg5 {[%emt 0:00:46]} Ng6 {[%emt 0:11:25]} 24. Qb2 {[%emt 0:04:25]} Nce5 {[%emt 0:02:37]} 25. Bb3 {[%emt 0:02:42]} Qe7 {[%emt 0:03:22]} 26. Rg3 {[%emt 0:04:06]} f4 {[%emt 0:04:59]} 27. Rh3 {[%emt 0:01:14]} f3 {[%emt 0:00:45]} 28. g3 {[%emt 0:03:08]} Qd7 {[%emt 0:01:11]} 29. Rh5 {[%emt 0:01:13]} Nf4 {[%emt 0:02:38]} 30. Rh4 {[%emt 0:00:56]} Neg6 {[%emt 0:00:23]} 31. Rd1 {[%emt 0:00:46]} Qe7 {[%emt 0:01:38]} 32. Rg4 {[%emt 0:00:52]} Nh3+ {[%emt 0:02:45]} 33. Kh1 {[%emt 0:02:00]} Rbe8 {[%emt 0:01:51]} 34. Rb4 {[%emt 0:01:20]} c5 {[%emt 0:00:23]} 35. Rg4 {[%emt 0:00:13]} b5 {[%emt 0:00:29]} 36. Qc2 {[%emt 0:01:24]} 0-1

[Event "EYCC Girls-U10 2019"]
[Site "Bratislava"]
[Date "2019.08.08"]
[Round "7.4"]
[White "Smietanska, Wiktoria"]
[Black "Bendik, Margarita"]
[Result "1-0"]
[ECO "D00"]
[WhiteElo "1547"]
[BlackElo "1188"]
[Annotator "NA"]
[PlyCount "79"]
[EventDate "2019.08.02"]
[EventType "swiss"]
[EventCountry "SVK"]
[SourceTitle "playchess.com"]
[Source "ChessBase"]
[SourceQuality "1"]
[TimeControl "40/5400+30:1800+30"]

1. d4 {[%emt 0:00:00]} d5 {[%emt 0:00:00]} 2. Bf4 {[%emt 0:00:00]} Nf6 {[%emt 0:00:03]} 3. e3 {[%emt 0:00:00]} c6 {[%emt 0:00:27]} 4. Bd3 {[%emt 0:02:39]} Qb6 {[%emt 0:03:20]} 5. Qc1 {[%emt 0:04:09]} Nh5 {[%emt 0:03:30]} 6. Bg5 {[%emt 0:04:45]} f6 {[%emt 0:04:13]} 7. Bh4 {[%emt 0:00:59]} e5 {[%emt 0:03:49]} 8. Be2 {[%emt 0:00:41]} g6 {[%emt 0:03:31]} 9. Bxh5 {[%emt 0:00:50]} gxh5 {[%emt 0:00:10]} 10. Bxf6 {[%emt 0:03:36]} Rg8 {[%emt 0:00:11]} 11. Bxe5 {[%emt 0:12:28]} Bf5 {[%emt 0:12:00]} 12. Nd2 {[%emt 0:11:32]} Nd7 {[%emt 0:04:28]} 13. Bg3 {[%emt 0:03:39]} Be7 {[%emt 0:03:01]} 14. Ngf3 {[%emt 0:01:35]} O-O-O {[%emt 0:03:30]} 15. Nb3 {[%emt 0:13:09]} a5 {[%emt 0:15:02]} 16. Qd2 {[%emt 0:07:01]} a4 {[%emt 0:05:31]} 17. Nc5 {[%emt 0:07:50]} Qxb2 {[%emt 0:05:27]} 18. O-O {[%emt 0:04:59]} Nxc5 {[%emt 0:03:23]} 19. dxc5 {[%emt 0:00:09]} Qxc2 {[%emt 0:00:55]} 20. Qa5 {[%emt 0:00:45]} Kd7 {[%emt 0:02:24]} 21. Qc7+ {[%emt 0:04:19]} Ke8 {[%emt 0:00:35]} 22. Qxb7 {[%emt 0:01:00]} Bd7 {[%emt 0:01:25]} 23. Qc7 {[%emt 0:01:29]} Qxc5 {[%emt 0:04:07]} 24. Rac1 {[%emt 0:01:53]} Qb4 {[%emt 0:02:40]} 25. Qe5 {[%emt 0:01:31]} Qg4 {[%emt 0:02:22]} 26. Qf4 {[%emt 0:01:49]} Qxf4 {[%emt 0:03:04]} 27. Bxf4 {[%emt 0:00:26]} h4 {[%emt 0:00:55]} 28. Kh1 {[%emt 0:01:12]} h3 {[%emt 0:00:31]} 29. g3 {[%emt 0:00:37]} Bf5 {[%emt 0:01:38]} 30. Nd4 {[%emt 0:00:32]} Be4+ {[%emt 0:01:19]} 31. f3 {[%emt 0:00:19]} Bd3 {[%emt 0:00:32]} 32. Rfd1 {[%emt 0:00:15]} Bc4 {[%emt 0:00:39]} 33. Nxc6 {[%emt 0:02:18]} Rc8 {[%emt 0:00:30]} 34. Ne5 {[%emt 0:02:27]} Ba3 {[%emt 0:00:38]} 35. Rc2 {[%emt 0:01:07]} Ke7 {[%emt 0:00:23]} 36. Nxc4 {[%emt 0:01:11]} Rxc4 {[%emt 0:01:49]} 37. Rcd2 {[%emt 0:01:13]} Rd8 {[%emt 0:00:44]} 38. Bg5+ {[%emt 0:00:06]} Ke8 {[%emt 0:00:36]} 39. Bxd8 {[%emt 0:00:10]} Kxd8 {[%emt 0:00:13]} 40. Rxd5+ {[%emt 0:00:00]} 1-0

[Event "EYCC Girls-U10 2019"]
[Site "Bratislava"]
[Date "2019.08.08"]
[Round "7.5"]
[White "Goriachkina, Oksana"]
[Black "Fedorova, Olesya"]
[Result "1/2-1/2"]
[ECO "A45"]
[WhiteElo "1417"]
[BlackElo "1516"]
[Annotator "NA"]
[PlyCount "109"]
[EventDate "2019.08.02"]
[EventType "swiss"]
[EventCountry "SVK"]
[SourceTitle "playchess.com"]
[Source "ChessBase"]
[SourceQuality "1"]
[TimeControl "40/5400+30:1800+30"]

1. d4 Nf6 2. Bg5 c5 3. Bxf6 exf6 4. Nf3 d5 5. e3 Nc6 6. Nc3 c4 7. a3 {[%emt 0:22:34]} Be7 {[%emt 0:09:43]} 8. Be2 {[%emt 0:00:32]} O-O {[%emt 0:01:58]} 9. O-O {[%emt 0:00:20]} Bg4 {[%emt 0:06:37]} 10. h3 {[%emt 0:02:57]} Bh5 {[%emt 0:01:49]} 11. Nd2 {[%emt 0:00:44]} Bxe2 {[%emt 0:00:39]} 12. Qxe2 {[%emt 0:01:06]} Qd7 {[%emt 0:01:15]} 13. Qf3 {[%emt 0:08:30]} Rfd8 14. Kh1 f5 15. Ne2 b5 {[%emt 0:11:00]} 16. b3 Bf6 17. Rab1 Rab8 18. c3 g6 19. Nf4 Ne7 20. bxc4 bxc4 21. Qd1 Bg7 22. Rb4 a5 23. Rb1 Bh6 24. Ne2 {[%emt 1:05:17]} Rxb1 25. Qxb1 Qd6 26. Qa2 Rb8 27. Rb1 Nc6 28. a4 Rxb1+ 29. Qxb1 Qb8 30. Qb5 Qxb5 31. axb5 Nb8 32. Nb1 Kf8 33. Nf4 Bxf4 34. exf4 Ke7 35. Kg1 Kd6 36. Kf1 Kc7 37. Ke2 Kb6 38. Na3 Nd7 39. f3 h5 40. h4 Nf8 41. Kd2 Ne6 42. g3 Nc7 43. Kc2 Nxb5 44. Nxb5 Kxb5 45. Kb2 Ka4 46. Ka2 Kb5 47. Kb2 a4 48. Ka3 Ka5 49. Kb2 a3+ 50. Kxa3 Kb5 51. Kb2 Ka4 52. Ka2 f6 53. Kb2 Kb5 54. Kc2 Ka4 55. Kb2 1/2-1/2

[Event "EYCC Girls-U10 2019"]
[Site "Bratislava"]
[Date "2019.08.08"]
[Round "7.6"]
[White "Zavivaeva, Evelina"]
[Black "Kirtadze, Anastasia"]
[Result "0-1"]
[ECO "B22"]
[WhiteElo "1302"]
[BlackElo "1532"]
[Annotator "NA"]
[PlyCount "50"]
[EventDate "2019.08.02"]
[EventType "swiss"]
[EventCountry "SVK"]
[SourceTitle "playchess.com"]
[Source "ChessBase"]
[SourceQuality "1"]
[TimeControl "40/5400+30:1800+30"]

1. e4 {[%emt 0:00:00]} c5 {[%emt 0:00:00]} 2. c3 {[%emt 0:01:07]} d5 {[%emt 0:00:35]} 3. exd5 {[%emt 0:00:07]} Qxd5 {[%emt 0:00:07]} 4. d4 {[%emt 0:00:12]} Nc6 {[%emt 0:00:19]} 5. Nf3 {[%emt 0:00:17]} Bg4 {[%emt 0:01:14]} 6. Be2 {[%emt 0:00:15]} e6 {[%emt 0:00:12]} 7. h3 {[%emt 0:00:51]} Bh5 {[%emt 0:10:47]} 8. O-O {[%emt 0:06:23]} Nf6 {[%emt 0:01:13]} 9. Bf4 {[%emt 0:03:59]} Be7 {[%emt 0:02:56]} 10. dxc5 {[%emt 0:02:43]} Bxc5 {[%emt 0:05:31]} 11. Nbd2 {[%emt 0:00:31]} O-O {[%emt 0:02:05]} 12. Qc2 Bg6 {[%emt 0:15:32]} 13. Qb3 {[%emt 0:20:31]} Qd7 {[%emt 0:11:08]} 14. Nc4 {[%emt 0:01:26]} Qe7 {[%emt 0:00:42]} 15. Nfe5 {[%emt 0:01:37]} Nd5 {[%emt 0:01:28]} 16. Nxg6 {[%emt 0:00:35]} hxg6 {[%emt 0:00:39]} 17. Bg3 {[%emt 0:00:23]} a6 {[%emt 0:05:21]} 18. a4 {[%emt 0:01:21]} Qg5 {[%emt 0:08:38]} 19. Bf3 {[%emt 0:08:37]} Qxg3 {[%emt 0:02:12]} 20. Qxb7 Qf4 21. Qb3 Qg3 22. Qb7 Qf4 23. Rfe1 {[%emt 0:42:34]} Qxc4 {[%emt 0:08:46]} 24. Re4 {[%emt 0:00:16]} Na5 {[%emt 0:02:06]} 25. b4 {[%emt 0:08:14]} Qxc3 {[%emt 0:01:37]} 0-1

[Event "EYCC Girls-U10 2019"]
[Site "Bratislava"]
[Date "2019.08.08"]
[Round "7.8"]
[White "Arzur, Maia"]
[Black "Eros, Vivien"]
[Result "1/2-1/2"]
[ECO "C10"]
[WhiteElo "1507"]
[BlackElo "1251"]
[Annotator "NA"]
[PlyCount "128"]
[EventDate "2019.08.02"]
[EventType "swiss"]
[EventCountry "SVK"]
[SourceTitle "playchess.com"]
[Source "ChessBase"]
[SourceQuality "1"]
[TimeControl "40/5400+30:1800+30"]

1. e4 e6 2. d4 d5 3. Nc3 dxe4 4. Nxe4 Bd7 5. Be3 Bc6 6. Nc3 Nf6 7. a3 Nbd7 8. Nf3 Bd6 9. Be2 O-O 10. Qd2 Qe7 11. Bg5 Rfe8 12. O-O h6 13. Bh4 Rad8 14. Rad1 Nb6 15. Qe3 Bxf3 16. Qxf3 c6 17. Ne4 Nbd7 18. c4 e5 19. d5 cxd5 20. cxd5 g5 21. Bg3 Nxe4 22. Qxe4 Nf6 23. Qf3 e4 24. Qb3 Bxg3 25. hxg3 h5 26. Bc4 Rf8 27. Qe3 Qe5 28. f4 Ng4 29. Qe2 gxf4 30. Rxf4 f5 31. d6+ Kg7 32. Rd5 Qe6 33. Rdxf5 Qxd6 34. Rxg4+ hxg4 35. Qxg4+ Qg6 36. Rg5 Rd1+ 37. Qxd1 Qxg5 38. Qd7+ Kh8 39. Qh3+ Kg7 40. Qd7+ Kg6 41. Qe6+ Kg7 42. Qd7+ Kh6 43. Qh3+ Qh5 44. Qe6+ Qg6 45. Qh3+ Kg7 46. Qd7+ Kh8 47. Qh3+ Qh7 48. Qe6 Qh5 49. Qxe4 Rf6 50. Qh4 Qxh4 51. gxh4 Rf4 52. Bd5 b6 53. b3 Rxh4 54. a4 Rb4 55. Bc4 a6 56. Bxa6 Rxb3 57. Bb5 Kg7 58. Kh2 Kf6 59. g3 Kg5 60. Kh3 Rb4 61. Kg2 Rd4 62. Kh3 Rd6 63. Kg2 Kf5 64. Kf3 Ke5 1/2-1/2

[Event "EYCC Girls-U10 2019"]
[Site "Bratislava"]
[Date "2019.08.08"]
[Round "7.9"]
[White "Kusakina, Uliana"]
[Black "Zadrapova, Amalie"]
[Result "1-0"]
[ECO "B90"]
[WhiteElo "1364"]
[BlackElo "1248"]
[Annotator "NA"]
[PlyCount "63"]
[EventDate "2019.08.02"]
[EventType "swiss"]
[EventCountry "SVK"]
[SourceTitle "playchess.com"]
[Source "ChessBase"]
[SourceQuality "1"]
[TimeControl "40/5400+30:1800+30"]

1. e4 {[%emt 0:00:00]} c5 {[%emt 0:00:00]} 2. Nf3 {[%emt 0:00:00]} d6 {[%emt 0:00:00]} 3. d4 {[%emt 0:00:00]} cxd4 {[%emt 0:00:02]} 4. Nxd4 {[%emt 0:00:07]} Nf6 {[%emt 0:00:21]} 5. Nc3 {[%emt 0:00:14]} a6 {[%emt 0:00:18]} 6. Be3 {[%emt 0:00:26]} e6 {[%emt 0:00:34]} 7. g4 {[%emt 0:00:41]} Be7 {[%emt 0:06:08]} 8. g5 {[%emt 0:01:13]} Nfd7 {[%emt 0:00:44]} 9. h4 {[%emt 0:01:53]} Nc6 {[%emt 0:04:11]} 10. Qe2 {[%emt 0:04:15]} Nb6 {[%emt 0:06:22]} 11. f4 {[%emt 0:05:36]} h5 {[%emt 0:04:50]} 12. Qf2 {[%emt 0:07:22]} Nd7 {[%emt 0:02:11]} 13. Bh3 {[%emt 0:06:24]} g6 {[%emt 0:05:00]} 14. Bxe6 {[%emt 0:10:49]} fxe6 {[%emt 0:13:13]} 15. Nxe6 {[%emt 0:00:40]} Qa5 {[%emt 0:00:16]} 16. f5 {[%emt 0:02:30]} gxf5 {[%emt 0:11:14]} 17. exf5 {[%emt 0:00:48]} Bd8 {[%emt 0:13:58]} 18. O-O-O {[%emt 0:07:42]} Rh7 {[%emt 0:08:34]} 19. g6 {[%emt 0:11:24]} Rh8 {[%emt 0:00:49]} 20. Rd5 {[%emt 0:03:28]} Qb4 {[%emt 0:01:08]} 21. a3 {[%emt 0:04:14]} Qc4 {[%emt 0:00:51]} 22. Nxd8 {[%emt 0:01:49]} Nxd8 {[%emt 0:01:04]} 23. Bd4 {[%emt 0:01:32]} Rg8 {[%emt 0:00:49]} 24. Qe3+ {[%emt 0:00:49]} Kf8 {[%emt 0:00:32]} 25. Qh6+ {[%emt 0:00:26]} Ke8 {[%emt 0:00:56]} 26. Qxh5 {[%emt 0:04:10]} Nc6 {[%emt 0:05:46]} 27. b3 {[%emt 0:01:11]} Qxd5 {[%emt 0:00:44]} 28. Nxd5 {[%emt 0:00:09]} Kd8 {[%emt 0:00:35]} 29. Qg5+ {[%emt 0:00:20]} Ke8 {[%emt 0:00:49]} 30. Re1+ {[%emt 0:00:17]} Kf8 {[%emt 0:00:19]} 31. Qh6+ {[%emt 0:00:16]} Rg7 {[%emt 0:00:21]} 32. Qxg7# {[%emt 0:00:07]} 1-0

[Event "EYCC Girls-U10 2019"]
[Site "Bratislava"]
[Date "2019.08.08"]
[Round "7.11"]
[White "Liashkevich, Lizaveta"]
[Black "Mkrtchyan, Anahit H."]
[Result "0-1"]
[ECO "E21"]
[WhiteElo "1406"]
[BlackElo "1155"]
[Annotator "NA"]
[PlyCount "98"]
[EventDate "2019.08.02"]
[EventType "swiss"]
[EventCountry "SVK"]
[SourceTitle "playchess.com"]
[Source "ChessBase"]
[SourceQuality "1"]
[TimeControl "40/5400+30:1800+30"]

1. d4 {[%emt 0:00:00]} Nf6 {[%emt 0:00:00]} 2. c4 {[%emt 0:00:00]} e6 {[%emt 0:00:15]} 3. Nf3 {[%emt 0:00:00]} b6 {[%emt 0:00:14]} 4. Nc3 {[%emt 0:00:21]} Bb4 {[%emt 0:00:33]} 5. Qc2 {[%emt 0:01:24]} Bb7 {[%emt 0:00:46]} 6. a3 {[%emt 0:01:17]} Bxc3+ {[%emt 0:00:17]} 7. Qxc3 {[%emt 0:00:11]} O-O {[%emt 0:00:07]} 8. Bg5 {[%emt 0:01:00]} h6 {[%emt 0:00:44]} 9. Bh4 {[%emt 0:01:09]} g5 {[%emt 0:03:49]} 10. Bg3 {[%emt 0:01:38]} Ne4 {[%emt 0:00:58]} 11. Qc2 {[%emt 0:03:56]} f5 {[%emt 0:02:11]} 12. h3 {[%emt 0:02:21]} f4 {[%emt 0:07:10]} 13. Bh2 {[%emt 0:00:12]} c5 {[%emt 0:02:08]} 14. e3 {[%emt 0:10:30]} d5 {[%emt 0:03:46]} 15. exf4 {[%emt 0:03:48]} Nc6 {[%emt 0:04:31]} 16. dxc5 {[%emt 0:06:32]} bxc5 {[%emt 0:00:37]} 17. O-O-O {[%emt 0:01:03]} gxf4 {[%emt 0:02:14]} 18. Bg1 {[%emt 0:14:29]} Na5 {[%emt 0:07:15]} 19. Nd2 {[%emt 0:06:37]} Qb6 {[%emt 0:04:39]} 20. Nxe4 {[%emt 0:12:02]} dxe4 {[%emt 0:01:24]} 21. f3 {[%emt 0:01:26]} Nb3+ {[%emt 0:06:05]} 22. Kb1 {[%emt 0:00:10]} Nd4 {[%emt 0:00:30]} 23. Bxd4 {[%emt 0:00:20]} cxd4 {[%emt 0:00:25]} 24. fxe4 {[%emt 0:00:18]} e5 {[%emt 0:01:04]} 25. Bd3 {[%emt 0:01:55]} Kh8 {[%emt 0:01:35]} 26. Rhg1 {[%emt 0:00:31]} Rg8 {[%emt 0:03:53]} 27. Qf2 {[%emt 0:03:38]} Rg3 {[%emt 0:01:47]} 28. Qc2 {[%emt 0:01:02]} Qg6 {[%emt 0:01:34]} 29. Rde1 {[%emt 0:11:47]} Rg8 {[%emt 0:03:04]} 30. b4 {[%emt 0:02:56]} Rxg2 {[%emt 0:02:07]} 31. Rxg2 {[%emt 0:00:08]} Qxg2 {[%emt 0:00:07]} 32. Qxg2 {[%emt 0:02:51]} Rxg2 {[%emt 0:00:13]} 33. Rf1 {[%emt 0:02:56]} Rg3 {[%emt 0:01:24]} 34. Kc2 {[%emt 0:00:09]} Rxh3 {[%emt 0:00:46]} 35. c5 {[%emt 0:00:22]} Rxd3 {[%emt 0:00:26]} 36. a4 {[%emt 0:00:26]} Bxe4 {[%emt 0:00:22]} 37. Kb2 {[%emt 0:00:06]} Rc3 {[%emt 0:00:38]} 38. Re1 {[%emt 0:00:24]} Re3 {[%emt 0:00:25]} 39. Rc1 {[%emt 0:00:05]} Re2+ {[%emt 0:00:19]} 40. Kb3 {[%emt 0:00:00]} Bd5+ {[%emt 0:00:00]} 41. Rc4 {[%emt 0:00:25]} Bxc4+ {[%emt 0:00:24]} 42. Kxc4 {[%emt 0:00:05]} f3 {[%emt 0:00:09]} 43. Kd3 {[%emt 0:00:10]} Re3+ {[%emt 0:00:07]} 44. Kd2 {[%emt 0:00:12]} f2 {[%emt 0:00:07]} 45. c6 {[%emt 0:00:06]} f1=Q {[%emt 0:00:10]} 46. c7 {[%emt 0:00:17]} Qd3+ {[%emt 0:00:13]} 47. Kc1 {[%emt 0:00:04]} Re1+ {[%emt 0:00:19]} 48. Kb2 {[%emt 0:00:05]} Qc3+ {[%emt 0:00:12]} 49. Ka2 {[%emt 0:00:04]} Ra1# {[%emt 0:00:03]} 0-1

[Event "EYCC Girls-U10 2019"]
[Site "Bratislava"]
[Date "2019.08.08"]
[Round "7.12"]
[White "Kuznecova, Marija"]
[Black "Shatil, Or"]
[Result "0-1"]
[ECO "A45"]
[WhiteElo "1375"]
[BlackElo "1185"]
[Annotator "NA"]
[PlyCount "52"]
[EventDate "2019.08.02"]
[EventType "swiss"]
[EventCountry "SVK"]
[SourceTitle "playchess.com"]
[Source "ChessBase"]
[SourceQuality "1"]
[TimeControl "40/5400+30:1800+30"]

1. d4 {[%emt 0:00:00]} Nf6 {[%emt 0:00:00]} 2. Nc3 {[%emt 0:00:00]} d5 {[%emt 0:00:00]} 3. Bf4 {[%emt 0:00:00]} Bf5 {[%emt 0:00:14]} 4. Nf3 {[%emt 0:00:11]} e6 {[%emt 0:01:47]} 5. a3 {[%emt 0:01:04]} c5 {[%emt 0:00:50]} 6. e3 {[%emt 0:01:30]} a6 {[%emt 0:02:19]} 7. Bd3 {[%emt 0:17:11]} Bxd3 {[%emt 0:01:19]} 8. Qxd3 {[%emt 0:00:17]} cxd4 {[%emt 0:01:54]} 9. exd4 {[%emt 0:01:05]} Nc6 {[%emt 0:00:43]} 10. b4 {[%emt 0:06:20]} Bd6 {[%emt 0:04:06]} 11. Bg3 {[%emt 0:02:12]} O-O {[%emt 0:03:09]} 12. Be5 {[%emt 0:06:43]} Bxe5 {[%emt 0:01:32]} 13. dxe5 {[%emt 0:01:10]} Ng4 {[%emt 0:04:48]} 14. Rd1 {[%emt 0:11:41]} Ngxe5 {[%emt 0:05:07]} 15. Nxe5 {[%emt 0:02:50]} Nxe5 {[%emt 0:00:30]} 16. Qg3 {[%emt 0:01:19]} Qf6 {[%emt 0:05:42]} 17. O-O {[%emt 0:01:52]} Rac8 {[%emt 0:01:01]} 18. f4 {[%emt 0:08:32]} Ng6 {[%emt 0:00:51]} 19. Rd3 {[%emt 0:07:13]} Rc4 {[%emt 0:02:12]} 20. f5 {[%emt 0:04:18]} exf5 {[%emt 0:13:40]} 21. Nxd5 {[%emt 0:01:45]} Qe6 {[%emt 0:03:19]} 22. Qf2 {[%emt 0:07:01]} Ne5 {[%emt 0:06:44]} 23. Rd2 {[%emt 0:01:31]} Ng4 {[%emt 0:10:02]} 24. Qxf5 {[%emt 0:02:11]} Qd6 {[%emt 0:02:38]} 25. Qh5 {[%emt 0:01:37]} Kh8 {[%emt 0:07:57]} 26. h3 {[%emt 0:09:46]} Qh2# {[%emt 0:00:08]} 0-1

[Event "EYCC Girls-U10 2019"]
[Site "Bratislava"]
[Date "2019.08.08"]
[Round "7.13"]
[White "Piddubna, Bozhena"]
[Black "Artissi, Sabina"]
[Result "1-0"]
[ECO "A30"]
[WhiteElo "1444"]
[BlackElo "1419"]
[Annotator "NA"]
[PlyCount "77"]
[EventDate "2019.08.02"]
[EventType "swiss"]
[EventCountry "SVK"]
[SourceTitle "playchess.com"]
[Source "ChessBase"]
[SourceQuality "1"]
[TimeControl "40/5400+30:1800+30"]

1. c4 {[%emt 0:01:25]} c5 {[%emt 0:00:00]} 2. g3 {[%emt 0:00:16]} g6 {[%emt 0:00:00]} 3. Bg2 {[%emt 0:00:07]} Bg7 {[%emt 0:00:00]} 4. Nc3 {[%emt 0:00:12]} d6 {[%emt 0:00:12]} 5. d3 {[%emt 0:01:23]} e6 {[%emt 0:01:23]} 6. Nf3 {[%emt 0:02:14]} Ne7 {[%emt 0:00:11]} 7. O-O {[%emt 0:05:49]} O-O {[%emt 0:00:11]} 8. Bd2 {[%emt 0:01:18]} Nbc6 {[%emt 0:00:09]} 9. Qc1 {[%emt 0:00:29]} Re8 {[%emt 0:02:47]} 10. Bh6 {[%emt 0:04:26]} Bh8 {[%emt 0:00:27]} 11. h4 {[%emt 0:05:05]} b6 {[%emt 0:01:02]} 12. Kh2 {[%emt 0:10:40]} Bb7 {[%emt 0:00:43]} 13. Rh1 {[%emt 0:00:21]} Qc7 {[%emt 0:00:54]} 14. Kg1 {[%emt 0:00:16]} Nf5 {[%emt 0:03:14]} 15. Bd2 {[%emt 0:00:37]} Ncd4 {[%emt 0:00:52]} 16. Nxd4 {[%emt 0:14:26]} Bxd4 {[%emt 0:00:43]} 17. Nb5 {[%emt 0:01:45]} Qd7 {[%emt 0:00:49]} 18. Bxb7 {[%emt 0:01:39]} Qxb7 {[%emt 0:05:52]} 19. e3 {[%emt 0:00:17]} Be5 {[%emt 0:01:22]} 20. g4 {[%emt 0:07:52]} Ne7 {[%emt 0:04:32]} 21. f4 {[%emt 0:00:16]} Qf3 {[%emt 0:14:29]} 22. Rh2 {[%emt 0:07:16]} Qxg4+ {[%emt 0:01:16]} 23. Rg2 {[%emt 0:01:56]} Qxh4 {[%emt 0:04:53]} 24. fxe5 {[%emt 0:00:05]} Red8 {[%emt 0:00:50]} 25. exd6 {[%emt 0:00:59]} Nf5 {[%emt 0:00:54]} 26. e4 {[%emt 0:13:15]} Ng3 {[%emt 0:06:30]} 27. Bg5 {[%emt 0:01:15]} Qh1+ {[%emt 0:00:53]} 28. Kf2 {[%emt 0:00:10]} Nxe4+ {[%emt 0:01:06]} 29. dxe4 {[%emt 0:00:15]} Qxc1 {[%emt 0:00:05]} 30. Rxc1 {[%emt 0:00:09]} Rd7 {[%emt 0:00:33]} 31. e5 {[%emt 0:00:41]} a6 {[%emt 0:00:33]} 32. Nc3 {[%emt 0:00:05]} b5 {[%emt 0:01:06]} 33. cxb5 {[%emt 0:00:58]} axb5 {[%emt 0:00:11]} 34. Nxb5 {[%emt 0:00:29]} Rxa2 {[%emt 0:00:10]} 35. Kf3 {[%emt 0:00:29]} Rb7 {[%emt 0:01:06]} 36. Rxc5 {[%emt 0:00:14]} Ra5 {[%emt 0:00:36]} 37. Rc8+ {[%emt 0:00:12]} Kg7 {[%emt 0:00:17]} 38. Bf6+ {[%emt 0:00:03]} Kh6 {[%emt 0:00:17]} 39. Rh2# {[%emt 0:00:06]} 1-0

[Event "EYCC Girls-U10 2019"]
[Site "Bratislava"]
[Date "2019.08.08"]
[Round "7.15"]
[White "Sosovickova, Martina"]
[Black "Mgeladze, Kesaria"]
[Result "1/2-1/2"]
[ECO "B18"]
[WhiteElo "1200"]
[BlackElo "1294"]
[Annotator "NA"]
[PlyCount "67"]
[EventDate "2019.08.02"]
[EventType "swiss"]
[EventCountry "SVK"]
[SourceTitle "playchess.com"]
[Source "ChessBase"]
[SourceQuality "1"]
[TimeControl "40/5400+30:1800+30"]

1. e4 {[%emt 0:00:00]} c6 {[%emt 0:00:00]} 2. d4 {[%emt 0:00:00]} d5 {[%emt 0:00:00]} 3. Nc3 {[%emt 0:00:00]} dxe4 {[%emt 0:00:00]} 4. Nxe4 {[%emt 0:00:16]} Bf5 {[%emt 0:00:00]} 5. Ng3 {[%emt 0:00:14]} Bg6 {[%emt 0:00:00]} 6. Nh3 {[%emt 0:00:24]} h6 {[%emt 0:00:14]} 7. Bc4 {[%emt 0:00:56]} e6 {[%emt 0:00:56]} 8. O-O {[%emt 0:01:01]} Nf6 {[%emt 0:00:18]} 9. Nf4 {[%emt 0:01:16]} Bh7 {[%emt 0:02:11]} 10. c3 {[%emt 0:02:29]} Bd6 {[%emt 0:00:24]} 11. Re1 {[%emt 0:01:37]} Bxf4 {[%emt 0:03:00]} 12. Bxf4 {[%emt 0:00:23]} O-O {[%emt 0:00:16]} 13. Bd3 {[%emt 0:05:41]} Bxd3 {[%emt 0:03:01]} 14. Qxd3 {[%emt 0:00:09]} Nd5 {[%emt 0:01:18]} 15. Qf3 {[%emt 0:04:13]} Nxf4 {[%emt 0:01:51]} 16. Qxf4 {[%emt 0:00:07]} Nd7 {[%emt 0:00:23]} 17. Rad1 {[%emt 0:05:32]} Nf6 {[%emt 0:00:54]} 18. c4 {[%emt 0:04:28]} Re8 {[%emt 0:09:52]} 19. b3 {[%emt 0:04:24]} Qa5 {[%emt 0:03:41]} 20. Qd2 {[%emt 0:04:38]} Qc7 {[%emt 0:00:15]} 21. h3 {[%emt 0:04:01]} Rad8 {[%emt 0:00:29]} 22. Qc3 {[%emt 0:01:24]} Re7 {[%emt 0:09:01]} 23. Re2 {[%emt 0:06:44]} Red7 {[%emt 0:01:41]} 24. Red2 {[%emt 0:00:30]} Rd6 {[%emt 0:02:20]} 25. Qe3 {[%emt 0:13:50]} b6 {[%emt 0:01:07]} 26. Ne2 {[%emt 0:04:03]} Qd7 {[%emt 0:10:04]} 27. Kf1 {[%emt 0:00:30]} Nh7 {[%emt 0:02:03]} 28. h4 {[%emt 0:05:24]} Nf8 {[%emt 0:00:44]} 29. g3 {[%emt 0:01:50]} Ng6 {[%emt 0:02:31]} 30. Ke1 {[%emt 0:05:32]} Ne7 31. Qc3 Nf5 {[%emt 0:01:55]} 32. b4 {[%emt 0:02:18]} Qb7 {[%emt 0:07:17]} 33. c5 {[%emt 0:04:17]} R6d7 {[%emt 0:00:39]} 34. a3 1/2-1/2